bitfinex-derivatives/quotes_SOLF0:USTF0_20250404
["timestamp","ask_amount","ask_price","bid_price","bid_amount"]
[1743772049076,0.05455244,115.87,115.85,41.69663136]
[1743772050383,8.6326,115.86,115.85,41.69663136]
[1743772050978,8.6326,115.86,115.85,0.05663136]
[1743772051178,8.68665244,115.87,115.85,0.05663136]
[1743772052186,0.05455244,115.87,115.85,8.68983136]
[1743772052387,0.05455244,115.87,115.85,0.05663136]
[1743772054385,50.20337744,115.86,115.78,41.6]
[1743772054685,50.20337744,115.88,115.79,60.73935198]
[1743772054885,50.20337744,115.88,115.79,8.9497]
[1743772055079,50.20337744,115.86,115.79,8.9497]
[1743772055480,0.0621389,115.84,115.81,50.26626826]
[1743772055682,50.20337744,115.92,115.82,47.87874414]
[1743772055990,50.20337744,115.92,115.82,46.2929]
[1743772056577,8.6312,115.88,115.83,1.58563328]
[1743772056784,0.0660452,115.88,115.86,0.05439281]
[1743772056983,0.0660452,115.88,115.86,41.65439281]
[1743772057590,8.6319,115.87,115.86,41.65439281]
[1743772057882,0.0660452,115.88,115.86,0.05439281]
[1743772058393,8.6319,115.87,115.86,0.05439281]
[1743772058779,0.0660452,115.88,115.86,0.05439281]
[1743772058979,8.6974452,115.88,115.86,0.05439281]
[1743772059178,0.0660452,115.88,115.86,0.05439281]
[1743772059685,8.6319,115.87,115.86,0.05439281]
[1743772060282,8.6972452,115.88,115.86,0.05439281]
[1743772060480,0.0660452,115.88,115.86,0.05439281]
[1743772061392,0.0660452,115.88,115.87,8.6319]
[1743772063090,11.77496954,115.96,115.87,58.82337744]
[1743772063392,11.77496954,115.96,115.88,41.58]
[1743772063597,8.6261,115.95,115.92,8.6274]
[1743772063893,11.77496954,115.96,115.92,41.58]
[1743772064088,11.77496954,115.96,115.94,8.6261]
[1743772064395,129.52466503,115.97,115.93,8.94900166]
[1743772065592,0.05949269,115.96,115.93,8.94900166]
[1743772065791,40.02549417,115.98,115.94,1.58401697]
[1743772065994,40.02549417,115.98,115.93,59.1523791]
[1743772066202,40.02549417,115.98,115.93,8.94900166]
[1743772066393,8.6261,115.95,115.94,41.56]
[1743772066595,40.02549417,115.98,115.94,41.56]
[1743772066791,0.05674028,115.97,115.94,41.56]
[1743772067293,100.40675488,115.95,115.78,50.20337744]
[1743772067590,50.20337744,115.89,115.79,1.58562014]
[1743772067796,41.56,115.88,115.79,1.58562014]
[1743772068289,0.05497562,115.85,115.82,0.05943181]
[1743772068595,0.05497562,115.85,115.83,8.6345]
[1743772068796,0.05497562,115.85,115.82,0.05943181]
[1743772068988,0.05497562,115.85,115.82,1.64506678]
[1743772069194,0.05497562,115.85,115.82,0.05943181]
[1743772069898,91.76337744,115.92,115.82,1.64504751]
[1743772070092,50.20337744,115.92,115.84,8.6334]
[1743772070297,91.76337744,115.92,115.84,8.6334]
[1743772070499,91.76337744,115.92,115.81,41.56]
[1743772070695,50.20337744,115.9,115.81,41.56]
[1743772070994,50.20337744,115.9,115.82,6.15408596]
[1743772071190,0.05637807,115.87,115.84,0.06150958]
[1743772071898,8.633,115.86,115.84,0.06150958]
[1743772072098,0.05637807,115.87,115.84,0.06150958]
[1743772072893,0.05637807,115.87,115.84,8.69530958]
[1743772073096,0.05637807,115.87,115.84,0.06150958]
[1743772074289,0.05637807,115.87,115.85,41.54]
[1743772074799,30.88702372,115.93,115.85,41.54]
[1743772075394,41.54,115.94,115.86,4.387]
[1743772075798,8.6284,115.92,115.88,8.6308]
[1743772076002,0.05909588,115.91,115.89,0.06422878]
[1743772076699,8.6296,115.9,115.89,0.06422878]
[1743772076899,8.6296,115.9,115.89,2.878e-05]
[1743772078999,8.68839588,115.91,115.89,2.878e-05]
[1743772079393,0.05909588,115.91,115.89,2.878e-05]
[1743772079595,8.6296,115.9,115.89,2.878e-05]
[1743772081094,30.9461196,115.91,115.84,13.3025]
[1743772081095,8.6327,115.86,115.84,4.6688]
[1743772081500,30.88702372,115.89,115.84,13.3025]
[1743772081699,8.6315,115.88,115.84,4.6688]
[1743772081892,30.88702372,115.91,115.83,41.52]
[1743772082195,8.6312,115.88,115.86,0.06362094]
[1743772082398,0.06408104,115.88,115.86,0.06362094]
[1743772082599,8.6319,115.87,115.86,0.06362094]
[1743772083698,8.69528104,115.88,115.86,0.06362094]
[1743772083894,0.06408104,115.88,115.86,0.06362094]
[1743772084093,8.6319,115.87,115.86,0.06362094]
[1743772084295,0.06408104,115.88,115.86,0.06362094]
[1743772085703,8.69558104,115.88,115.86,0.06362094]
[1743772085905,0.06408104,115.88,115.86,0.06362094]
[1743772086104,0.06408104,115.88,115.86,41.58362094]
[1743772087201,8.6319,115.87,115.86,0.06362094]
[1743772087398,30.88702372,115.87,115.8,4.5499]
[1743772087603,8.6353,115.83,115.8,8.6367]
[1743772087903,30.88702372,115.83,115.78,41.52]
[1743772088103,8.6368,115.81,115.78,8.6382]
[1743772088295,30.88702372,115.83,115.78,8.6382]
[1743772088505,30.88702372,115.85,115.78,41.52]
[1743772088698,0.06621383,115.82,115.79,0.06418528]
[1743772089405,0.06621383,115.82,115.8,8.6371]
[1743772089603,0.06621383,115.82,115.79,0.06418528]
[1743772090106,8.6371,115.8,115.79,0.06418528]
[1743772091706,8.639,115.78,115.76,41.52]
[1743772091901,39.69992372,115.81,115.75,50.0]
[1743772092302,39.69992372,115.81,115.75,58.6407]
[1743772092808,8.6385,115.79,115.76,8.6396]
[1743772093009,0.06447448,115.79,115.77,0.06600142]
[1743772093507,8.6386,115.78,115.77,0.06600142]
[1743772094002,8.70267448,115.79,115.77,0.06600142]
[1743772094404,0.06447448,115.79,115.77,0.06600142]
[1743772094600,8.70267448,115.79,115.77,0.06600142]
[1743772095106,0.06447448,115.79,115.77,0.06600142]
[1743772095409,0.06447448,115.79,115.78,8.6386]
[1743772096401,0.06447448,115.79,115.77,0.06600142]
[1743772096598,30.9514982,115.79,115.77,0.06600142]
[1743772097407,8.6386,115.78,115.77,0.06600142]
[1743772097798,30.9514982,115.79,115.75,50.0]
[1743772098007,30.88702372,115.77,115.7,4.397]
[1743772098508,8.6417,115.74,115.7,4.397]
[1743772098809,30.88702372,115.75,115.69,41.52]
[1743772098999,8.6435,115.72,115.71,0.05602297]
[1743772100209,8.6458,115.69,115.66,8.6472]
[1743772100609,8.6458,115.69,115.65,9.2245]
[1743772100798,30.88702372,115.71,115.66,8.6474]
[1743772101402,8.6456,115.69,115.67,0.06108536]
[1743772101604,0.06562698,115.7,115.67,0.06108536]
[1743772102308,0.06562698,115.7,115.67,8.70758536]
[1743772102509,0.06562698,115.7,115.67,0.06108536]
[1743772102712,8.71062698,115.7,115.67,0.06108536]
[1743772102902,8.71062698,115.7,115.67,8.70738536]
[1743772103102,0.06562698,115.7,115.67,8.70738536]
[1743772103412,8.6457,115.69,115.67,0.06108536]
[1743772103609,0.06562698,115.7,115.67,0.06108536]
[1743772104403,8.646,115.68,115.67,0.06108536]
[1743772104909,0.06562698,115.7,115.67,0.06108536]
[1743772105105,30.88702372,115.69,115.67,0.06108536]
[1743772105714,8.646,115.68,115.67,0.06108536]
[1743772106004,30.88702372,115.69,115.62,4.6041]
[1743772106206,8.6491,115.64,115.59,4.5005]
[1743772106401,30.88702372,115.65,115.6,1.58868917]
[1743772106606,8.6519,115.61,115.57,4.7293]
[1743772106800,30.88702372,115.61,115.56,13.1551]
[1743772107005,30.88702372,115.61,115.56,8.6546]
[1743772107206,0.06548731,115.6,115.57,0.05848185]
[1743772107512,30.88702372,115.59,115.58,1.73040318]
[1743772107708,8.6528,115.59,115.58,1.73040318]
[1743772108615,8.6528,115.59,115.58,1.25270318]
[1743772109111,8.6535,115.58,115.57,0.05848185]
[1743772109406,72.40702372,115.59,115.5,4.311]
[1743772109616,72.40702372,115.59,115.52,1.58997768]
[1743772109814,50.48239664,115.58,115.51,4.7293]
[1743772110312,8.71761232,115.56,115.53,8.6569]
[1743772110516,8.71761232,115.56,115.53,8.70212112]
[1743772110919,0.06241232,115.56,115.53,0.04522112]
[1743772111316,50.54480896,115.56,115.53,0.04522112]
[1743772111712,8.6565,115.54,115.53,0.04522112]
[1743772112113,59.13889664,115.54,115.53,0.04522112]
[1743772112318,59.13889664,115.54,115.53,2.112e-05]
[1743772112517,8.6599,115.5,115.48,4.7326]
[1743772112716,50.48239664,115.52,115.47,4.6978]
[1743772113013,8.6601,115.5,115.47,4.6978]
[1743772113216,8.6601,115.5,115.47,13.3595]
[1743772113412,50.48239664,115.52,115.47,4.6978]
[1743772113619,8.6592,115.51,115.47,4.6978]
[1743772113819,0.06490854,115.51,115.47,4.6978]
[1743772114014,41.60490854,115.51,115.44,4.623]
[1743772114215,50.48239664,115.48,115.37,41.54]
[1743772114519,0.05761455,115.49,115.39,59.61149664]
[1743772114718,0.06098838,115.45,115.41,50.48239664]
[1743772115021,50.48239664,115.5,115.42,43.1315217]
[1743772115220,50.48239664,115.48,115.43,1.5915217]
[1743772115419,50.48239664,115.48,115.42,50.2051]
[1743772115625,8.6614,115.48,115.42,41.54]
[1743772115823,50.48239664,115.5,115.43,1.59132158]
[1743772116022,0.06300556,115.46,115.44,0.06098838]
[1743772116324,8.6633,115.45,115.41,8.6657]
[1743772116521,0.05666365,115.46,115.44,0.06077491]
[1743772116717,50.48239664,115.5,115.41,50.48239664]
[1743772116921,0.05663046,115.46,115.44,0.05950101]
[1743772117526,0.05663046,115.46,115.44,1.65053108]
[1743772118631,0.05663046,115.46,115.44,0.05950101]
[1743772118925,0.05663046,115.46,115.44,10.31440326]
[1743772119127,0.05663046,115.46,115.44,8.72310101]
[1743772119419,0.05663046,115.46,115.45,8.6633]
[1743772119925,0.05663046,115.46,115.45,1.59115635]
[1743772120127,0.05663046,115.46,115.44,8.72340101]
[1743772120323,0.05663046,115.46,115.45,1.59114607]
[1743772120525,0.05663046,115.46,115.45,8.6633]
[1743772120922,0.05663046,115.46,115.45,10.25450615]
[1743772121126,0.05663046,115.46,115.45,8.6633]
[1743772122130,41.56,115.51,115.44,0.05950101]
[1743772122331,50.48239664,115.5,115.42,41.56]
[1743772122531,8.6605,115.49,115.42,41.56]
[1743772122731,50.48239664,115.5,115.42,41.56]
[1743772123227,41.56,115.51,115.42,92.04239664]
[1743772123528,52.12090787,115.56,115.42,92.04239664]
[1743772123529,50.48239664,115.57,115.46,50.48239664]
[1743772123727,50.48239664,115.55,115.47,50.6337]
[1743772123925,50.48239664,115.53,115.47,50.6337]
[1743772124121,8.6608,115.49,115.47,46.1376]
[1743772124327,8.6608,115.49,115.47,4.5776]
[1743772124522,0.06059673,115.49,115.47,4.63608537]
[1743772124731,0.06059673,115.49,115.47,0.05848537]
[1743772124732,8.661,115.48,115.47,0.05848537]
[1743772127436,50.221,115.48,115.47,0.05848537]
[1743772127633,50.221,115.48,115.47,8.537e-05]
[1743772127837,8.6639,115.45,115.43,4.5776]
[1743772128041,41.56,115.48,115.43,4.5776]
[1743772128538,50.48239664,115.49,115.43,13.242]
[1743772128737,92.02239664,115.49,115.43,13.242]
[1743772128934,0.06311838,115.47,115.45,0.06137132]
[1743772129538,8.6625,115.46,115.45,0.06137132]
[1743772129940,0.06311838,115.47,115.41,4.4744]
[1743772130141,92.02239664,115.49,115.42,4.3368]
[1743772130340,92.02239664,115.49,115.42,13.002]
[1743772130640,8.6636,115.45,115.42,13.002]
[1743772131141,8.72042533,115.45,115.42,13.06142943]
[1743772131531,0.05682533,115.45,115.42,4.39622943]
[1743772131736,0.05682533,115.45,115.42,0.05942943]
[1743772132041,8.664,115.44,115.42,0.05942943]
[1743772132739,8.6648,115.43,115.42,0.05942943]
[1743772132943,0.05682533,115.45,115.42,0.05942943]
[1743772133840,8.6648,115.43,115.42,0.05942943]
[1743772134036,0.05682533,115.45,115.42,0.05942943]
[1743772135543,8.6648,115.43,115.42,0.05942943]
[1743772138244,8.6644,115.44,115.42,0.05942943]
[1743772138644,0.05682533,115.45,115.42,0.05942943]
[1743772138842,8.6648,115.43,115.42,0.05942943]
[1743772142247,8.6671,115.4,115.33,31.12885037]
[1743772142545,311.74,115.46,115.4,8.6669]
[1743772142742,78.44637361,115.5,115.39,41.54]
[1743772142743,31.12885037,115.49,115.39,41.54]
[1743772142948,31.12885037,115.49,115.4,5.92164985]
[1743772143141,47.31752324,115.5,115.45,8.6628]
[1743772143337,47.31752324,115.5,115.45,41.54]
[1743772143338,8.6608,115.49,115.45,41.54]
[1743772143537,47.31752324,115.5,115.46,9.1493]
[1743772143743,87.01695639,115.51,115.47,32.71946559]
[1743772143944,79.83505639,115.51,115.48,43.13061522]
[1743772144247,79.83505639,115.51,115.46,13.8805]
[1743772144446,8.6615,115.48,115.46,13.8805]
[1743772144843,8.72270261,115.48,115.46,13.94171543]
[1743772145038,8.72270261,115.48,115.46,9.51081543]
[1743772145244,0.06120261,115.48,115.46,18.17331543]
[1743772145744,0.06120261,115.48,115.46,0.06121543]
[1743772146135,8.6618,115.47,115.46,0.06121543]
[1743772146749,8.72260261,115.48,115.46,0.06121543]
[1743772147048,0.06120261,115.48,115.46,0.06121543]
[1743772147443,0.06120261,115.48,115.46,8.72331543]
[1743772147642,0.06120261,115.48,115.47,41.52]
[1743772147949,0.06120261,115.48,115.47,50.1818]
[1743772148151,4.7812,115.54,115.47,41.52]
[1743772148343,8.6608,115.49,115.46,8.6623]
[1743772148547,31.12885037,115.52,115.47,41.52]
[1743772148850,8.6601,115.5,115.46,50.1821]
[1743772149248,0.05723247,115.49,115.47,0.06347108]
[1743772149448,8.71783247,115.49,115.47,0.06347108]
[1743772150248,0.05723247,115.49,115.47,0.06347108]
[1743772151249,8.661,115.48,115.47,0.06347108]
[1743772151451,0.05723247,115.49,115.42,4.7197]
[1743772151642,31.12885037,115.48,115.41,4.4314]
[1743772151849,8.6644,115.44,115.41,54.5974]
[1743772152147,31.12885037,115.48,115.41,45.9314]
[1743772152347,8.9585,115.49,115.41,45.9314]
[1743772152545,8.9585,115.49,115.44,0.05894696]
[1743772152750,0.06140015,115.46,115.44,0.05894696]
[1743772152953,8.6633,115.45,115.44,0.05894696]
[1743772153646,8.6652,115.43,115.4,4.6478]
[1743772153852,8.6652,115.43,115.4,46.1478]
[1743772154045,31.12885037,115.48,115.4,54.8145]
[1743772154242,8.6654,115.43,115.4,46.1478]
[1743772154745,8.6654,115.43,115.4,54.8145]
[1743772154951,8.73030978,115.43,115.4,54.8145]
[1743772155152,8.6656,115.42,115.4,50.1667]
[1743772155354,0.06490978,115.43,115.41,8.6663]
[1743772155559,0.06490978,115.43,115.4,41.5]
[1743772155854,0.06490978,115.43,115.42,8.6655]
[1743772156046,0.06490978,115.43,115.4,41.5]
[1743772156848,8.6662,115.42,115.4,41.5]
[1743772157048,0.06490978,115.43,115.4,41.5]
[1743772157248,8.6663,115.41,115.4,41.5]
[1743772157448,0.06490978,115.43,115.4,41.5]
[1743772157650,0.06490978,115.43,115.38,9.1356]
[1743772157846,0.06490978,115.43,115.39,41.48]
[1743772158050,0.06490978,115.43,115.38,9.1356]
[1743772158351,8.6677,115.4,115.38,9.1356]
[1743772158756,0.05531139,115.4,115.36,41.48]
[1743772158954,8.72271139,115.4,115.36,41.48]
[1743772159151,0.05531139,115.4,115.36,41.48]
[1743772159355,0.05531139,115.4,115.36,50.1496]
[1743772159554,0.05531139,115.4,115.35,14.0648]
[1743772159756,0.05531139,115.4,115.35,9.3516]
[1743772159955,8.6694,115.37,115.35,59.5022]
[1743772160155,8.6694,115.37,115.35,9.3516]
[1743772160457,8.6707,115.36,115.31,31.12885037]
[1743772160645,31.12885037,115.4,115.34,41.48]
[1743772160852,0.05827982,115.35,115.33,41.48]
[1743772161051,8.6711,115.35,115.33,41.48]
[1743772161252,0.0601313,115.35,115.31,4.5974]
[1743772161554,8.6724,115.33,115.31,4.5974]
[1743772162153,8.6731,115.32,115.3,41.48]
[1743772162655,0.06346139,115.32,115.3,41.48]
[1743772162857,31.12885037,115.4,115.3,72.60885037]
[1743772163257,8.6697,115.37,115.3,72.60885037]
[1743772163563,8.6697,115.37,115.34,8.6708]
[1743772163755,8.6697,115.37,115.34,50.1508]
[1743772163956,4.4507,115.41,115.34,50.1508]
[1743772163957,4.4507,115.41,115.34,41.48]
[1743772164157,0.05554432,115.37,115.36,8.6695]
[1743772164354,8.6674,115.4,115.36,8.6695]
[1743772164559,0.06082157,115.38,115.36,8.6695]
[1743772164864,0.06082157,115.38,115.35,4.53767999]
[1743772165858,0.06082157,115.38,115.35,0.05727999]
[1743772166059,8.6696,115.37,115.35,0.05727999]
[1743772166462,0.06082157,115.38,115.35,0.05727999]
[1743772166463,31.18967194,115.38,115.35,0.05727999]
[1743772166658,8.6693,115.37,115.35,0.05727999]
[1743772166960,0.06082157,115.38,115.35,41.53727999]
[1743772169657,0.06082157,115.38,115.35,0.05727999]
[1743772170056,8.67,115.36,115.35,0.05727999]
[1743772170765,8.6697,115.37,115.35,0.05727999]
[1743772170958,0.06082157,115.38,115.35,0.05727999]
[1743772171162,8.72972157,115.38,115.35,8.72807999]
[1743772171363,0.06082157,115.38,115.35,0.05727999]
[1743772173369,8.67,115.36,115.35,0.05727999]
[1743772174769,8.6697,115.37,115.35,0.05727999]
[1743772175274,8.72962157,115.38,115.35,0.05727999]
[1743772175473,0.06082157,115.38,115.35,0.05727999]
[1743772175775,0.06082157,115.38,115.36,41.46]
[1743772176461,8.6693,115.37,115.36,41.46]
[1743772177067,8.72972157,115.38,115.36,41.46]
[1743772177367,0.06082157,115.38,115.36,50.1296]
[1743772177563,0.06082157,115.38,115.36,41.46]
[1743772177870,8.72932157,115.38,115.36,41.46]
[1743772178168,0.06082157,115.38,115.36,41.46]
[1743772178669,0.06082157,115.38,115.35,0.05727999]
[1743772178866,8.67,115.36,115.35,0.05727999]
[1743772179061,0.06082157,115.38,115.35,0.05727999]
[1743772179360,8.6697,115.37,115.35,0.05727999]
[1743772179567,0.06082157,115.38,115.35,0.05727999]
[1743772180769,0.06082157,115.38,115.36,8.6697]
[1743772181463,8.72932157,115.38,115.35,8.72757999]
[1743772181864,0.06082157,115.38,115.35,0.05727999]
[1743772183165,8.72972157,115.38,115.35,8.72767999]
[1743772183366,0.06082157,115.38,115.35,0.05727999]
[1743772183666,0.06082157,115.38,115.37,8.6693]
[1743772183860,311.84,115.43,115.37,41.44]
[1743772184064,4.3805,115.47,115.39,31.12885037]
[1743772184263,31.12885037,115.46,115.37,41.44]
[1743772184968,0.06122263,115.43,115.4,0.06617758]
[1743772185164,31.12885037,115.42,115.36,4.4294]
[1743772185465,31.12885037,115.42,115.4,6.905e-05]
[1743772185768,35.50935037,115.41,115.34,41.44]
[1743772185967,8.6682,115.39,115.35,8.6702]
[1743772186170,35.50935037,115.41,115.34,41.44]
[1743772186567,8.67,115.36,115.34,41.44]
[1743772186967,35.50935037,115.41,115.34,0.05841391]
[1743772187174,0.0607373,115.36,115.33,41.42]
[1743772187368,35.50935037,115.41,115.36,0.05841391]
[1743772187572,8.6712,115.35,115.32,8.6729]
[1743772187778,35.50935037,115.41,115.31,4.4294]
[1743772187779,31.12885037,115.38,115.31,4.4294]
[1743772188075,0.06008623,115.36,115.32,41.47841391]
[1743772188267,8.6716,115.34,115.32,41.47841391]
[1743772188570,0.06008623,115.36,115.32,0.05841391]
[1743772188770,31.1889366,115.36,115.32,0.05841391]
[1743772189276,8.6723,115.33,115.32,0.05841391]
[1743772190173,0.06180106,115.34,115.32,0.05841391]
[1743772191671,8.73370106,115.34,115.32,0.05841391]
[1743772191876,0.06180106,115.34,115.32,0.05841391]
[1743772192273,8.6723,115.33,115.32,0.05841391]
[1743772192672,31.19065143,115.34,115.28,247.9347229]
[1743772192876,31.12885037,115.34,115.28,247.9347229]
[1743772193174,31.12885037,115.34,115.28,239.2588229]
[1743772193375,31.12885037,115.34,115.27,8.7173]
[1743772193774,0.0578688,115.32,115.26,8.677]
[1743772193975,8.6759,115.29,115.26,8.677]
[1743772194175,31.12885037,115.34,115.26,8.6771]
[1743772194377,8.73525541,115.29,115.26,8.6771]
[1743772194675,0.05995541,115.29,115.23,13.1201]
[1743772194975,8.6765,115.28,115.24,41.42]
[1743772195478,0.05995541,115.29,115.24,41.42]
[1743772195669,8.73565541,115.29,115.24,41.42]
[1743772196176,0.05995541,115.29,115.24,41.42]
[1743772196375,0.05995541,115.29,115.24,31.12885037]
[1743772196572,0.05995541,115.29,115.26,8.6774]
[1743772196776,0.05995541,115.29,115.25,41.4]
[1743772197683,0.05995541,115.29,115.27,8.6764]
[1743772198374,0.05995541,115.29,115.25,41.4]
[1743772198879,8.6761,115.28,115.25,50.0779]
[1743772199079,0.05995541,115.29,115.25,41.4]
[1743772199882,8.73555541,115.29,115.26,8.6772]
[1743772200283,8.73555541,115.29,115.25,41.4]
[1743772200284,0.05995541,115.29,115.25,41.4]
[1743772200483,8.6742,115.31,115.28,8.676]
[1743772200687,8.6742,115.31,115.25,41.4]
[1743772200983,8.6742,115.31,115.27,8.6763]
[1743772201187,8.6742,115.31,115.25,41.4]
[1743772201188,31.12885037,115.34,115.25,41.4]
[1743772201384,4.5019,115.35,115.26,31.12885037]
[1743772201684,0.05475885,115.31,115.28,0.05475741]
[1743772201883,0.05475885,115.31,115.29,41.4]
[1743772202080,0.05475885,115.31,115.3,8.674]
[1743772202281,31.12885037,115.36,115.29,41.4]
[1743772202482,31.12885037,115.34,115.28,0.05622925]
[1743772202681,72.52885037,115.34,115.27,8.6765]
[1743772202880,8.675,115.3,115.25,41.4]
[1743772203084,72.52885037,115.34,115.25,41.4]
[1743772203285,0.06142432,115.29,115.26,1.65064824]
[1743772203487,8.6729,115.33,115.26,1.59336442]
[1743772203885,8.6729,115.33,115.3,8.6741]
[1743772204083,8.6731,115.32,115.29,41.4]
[1743772204277,35.57455037,115.36,115.29,41.4]
[1743772204485,31.12885037,115.34,115.29,41.4]
[1743772204787,31.18759079,115.34,115.31,0.06009587]
[1743772205085,8.6744,115.31,115.27,8.6761]
[1743772205283,8.6744,115.31,115.26,41.38]
[1743772205483,0.06042481,115.3,115.29,8.6749]
[1743772205681,8.6736,115.32,115.29,8.6749]
[1743772205884,0.06461474,115.31,115.29,8.6749]
[1743772206186,8.73841474,115.31,115.28,8.73862339]
[1743772206386,0.06461474,115.31,115.28,0.06302339]
[1743772206687,8.6746,115.3,115.28,0.06302339]
[1743772206986,0.06461474,115.31,115.28,0.06302339]
[1743772207182,8.6746,115.3,115.28,0.06302339]
[1743772207485,0.06461474,115.31,115.28,0.06302339]
[1743772207887,8.73871474,115.31,115.28,8.73872339]
[1743772208582,8.6748,115.3,115.28,0.06302339]
[1743772208785,0.06461474,115.31,115.28,0.06302339]
[1743772209189,8.6753,115.29,115.28,0.06302339]
[1743772209684,31.12885037,115.3,115.23,4.3346]
[1743772209685,8.678,115.26,115.23,8.6794]
[1743772209990,31.12885037,115.26,115.19,4.7882]
[1743772210185,8.6809,115.22,115.19,13.4707]
[1743772210581,31.12885037,115.26,115.19,4.7882]
[1743772210782,0.05484725,115.22,115.19,4.84897105]
[1743772210994,0.05484725,115.22,115.19,4.7882]
[1743772211189,8.6821,115.2,115.19,0.05659447]
[1743772212486,8.6836,115.18,115.17,33.07402555]
[1743772212884,8.6843,115.17,115.16,239.2588229]
[1743772213091,8.6843,115.17,115.16,181.6107071]
[1743772213286,31.12885037,115.18,115.15,270.8614286]
[1743772213488,31.12885037,115.18,115.15,88.00906496]
[1743772213489,39.81395037,115.16,115.15,88.00906496]
[1743772213693,81.19395037,115.16,115.15,88.00906496]
[1743772213991,81.19395037,115.16,115.15,0.05488242]
[1743772214191,72.50885037,115.16,115.07,9.1176]
[1743772214386,31.12885037,115.13,115.07,4.4031]
[1743772214692,8.6908,115.09,115.04,239.69074006]
[1743772214993,31.12885037,115.09,115.04,239.69074006]
[1743772215390,31.12885037,115.07,115.04,239.69074006]
[1743772215892,0.05937853,115.08,115.05,8.6929]
[1743772216392,0.05937853,115.08,115.04,41.38]
[1743772216989,8.692,115.07,115.04,41.38]
[1743772217195,39.82085037,115.07,115.02,8.6954]
[1743772217392,39.82115037,115.07,115.02,8.6952]
[1743772217596,31.12885037,115.07,114.98,31.12885037]
[1743772217795,0.05510161,115.06,114.98,31.12885037]
[1743772217995,0.05510161,115.06,115.0,41.38]
[1743772218194,31.12885037,115.07,115.0,41.38]
[1743772218393,0.06631816,115.04,115.0,41.38]
[1743772219396,0.06631816,115.04,114.99,46.1145]
[1743772220395,0.06631816,115.04,115.0,31.12885037]
[1743772220597,12.00082097,115.09,115.0,31.12885037]
[1743772220798,12.00082097,115.09,115.02,31.12885037]
[1743772221096,312.18,115.11,115.03,41.38]
[1743772221295,12.00082097,115.12,115.04,31.12885037]
[1743772221595,8.6898,115.1,115.06,8.6923]
[1743772221796,0.06300548,115.09,115.07,0.05528868]
[1743772222194,8.75340548,115.09,115.07,0.05528868]
[1743772222492,0.06300548,115.09,115.07,0.05528868]
[1743772223398,8.75400548,115.09,115.07,0.05528868]
[1743772223600,0.06300548,115.09,115.07,0.05528868]
[1743772224491,0.06300548,115.09,115.08,8.6911]
[1743772224696,8.6877,115.13,115.07,41.38]
[1743772224895,43.12967134,115.15,115.07,41.38]
[1743772225097,8.6901,115.1,115.07,41.38]
[1743772225301,31.12885037,115.13,115.07,41.38]
[1743772225701,8.69,115.1,115.07,41.38]
[1743772226004,72.58385971,115.11,115.09,3.464e-05]
[1743772226299,8.6923,115.07,115.02,41.4]
[1743772226599,72.52885037,115.11,115.02,41.4]
[1743772226800,8.6901,115.1,115.06,8.6922]
[1743772227002,41.4,115.11,115.06,8.6922]
[1743772227302,8.6909,115.09,115.07,0.02077365]
[1743772227699,8.6909,115.09,115.07,0.00077365]
[1743772227700,0.0630357,115.09,115.07,0.00077365]
[1743772227899,8.7538357,115.09,115.07,0.00077365]
[1743772228401,0.0630357,115.09,115.07,0.00077365]
[1743772228798,8.6911,115.08,115.07,0.00077365]
[1743772229104,8.6911,115.08,115.04,8.6937]
[1743772229402,0.0630357,115.09,115.03,8.6948]
[1743772229602,31.12885037,115.1,115.03,8.6948]
[1743772230103,31.12885037,115.1,115.04,8.6941]
[1743772230396,8.6924,115.07,115.04,8.6941]
[1743772231399,46.17513243,115.08,115.05,8.693]
[1743772231802,46.17513243,115.08,115.02,72.52885037]
[1743772232003,46.17513243,115.08,114.98,72.50885037]
[1743772232204,72.50885037,115.09,115.0,9.2226]
[1743772232402,0.06277972,115.04,115.03,8.6945]
[1743772232598,8.6923,115.07,115.03,8.6945]
[1743772232793,0.06105108,115.05,115.03,8.6945]
[1743772233202,0.06105108,115.05,115.02,41.38]
[1743772233703,0.06105108,115.05,115.03,8.6942]
[1743772234605,0.06105108,115.05,115.02,41.38]
[1743772235006,8.75475108,115.05,115.02,41.38]
[1743772235207,0.06105108,115.05,115.02,41.38]
[1743772235608,0.06105108,115.05,115.02,50.0752]